Cogmind - Beta 9.6 @@@ ROGUE MODE // 2020.06.25 @ 16:17:55 Player: Vectis Result: Destroyed by 8R-AWN with 8R-AWN's Boregun Performance ------------- Evolutions (1) 500 Regions Visited (5) 1000 Robots Destroyed (70) 350 Value Destroyed (1586) 1586 Prototype IDs (8) 160 Alien Tech Used (0) 0 Bonus (-519) -519 TOTAL SCORE: 3077 Bonus ------- Friendly Fire -519 Cogmind --------- Core Integrity 0/400 Matter 218/300 Energy 76/280 System Corruption 0% Temperature Cool (0) Movement Core (450) Ox8 Location -9/Exiles Parts ------- > --- POWER (1) -------- Heavy Ion Engine > --- PROPULSION (2) --- (None) > --- UTILITY (4) ------ Large Storage Unit > --- WEAPON (2) ------- Improved EM Shotgun > --- INVENTORY (10) --- EM Pulse Cannon Rocket Launcher Peak State ------------ > --- POWER ------------ Heavy Ion Engine > --- PROPULSION ------- Light Treads Light Treads > --- UTILITY ---------- Improved Heat Sink Large Storage Unit Large Storage Unit Large Storage Unit > --- WEAPON ----------- Advanced Beam Cannon Advanced Beam Cannon > --- INVENTORY -------- Light Ion Engine Light Nuclear Core Light Treads Light Treads Light Treads Light Treads Light Treads Light Treads Disposable Heat Sink Large Storage Unit High-capacity Battery Medium Matter Pod Hardened Light Armor Plating Hardened Light Armor Plating Hardened Light Armor Plating Improved EM Shotgun Improved EM Shotgun Improved EM Shotgun Improved EM Shotgun Advanced Beam Cannon Advanced Beam Cannon Plasma Cutter [Rating: 21] Favorites ----------- Power Cooled Ion Engine Engine Cooled Ion Engine Propulsion Light Treads Treads Light Treads Utility Large Storage Unit Device Heat Sink Storage Large Storage Unit Processor Improved Targeting Computer Protection Hardened Light Armor Plating Weapon Advanced Beam Cannon Energy Gun Small Laser Energy Cannon Advanced Beam Cannon Ballistic Gun Autogun Ballistic Cannon Light Cannon Launcher Rocket Launcher Build | -11 -10 -10 -9 -9 -9 ------- Run | Scr Mat Min Mat Min Exi Slots Evolved 2 | . . . 2 . . Power . | . . . . . . Propulsion . | . . . . . . Utility 2 | . . . 2 . . Weapon . | . . . . . . Parts Attached 75 | 8 6 . 42 . 19 Power 10 | 2 . . 5 . 3 Engine 10 | 2 . . 5 . 3 Core . | . . . . . . Reactor . | . . . . . . Propulsion 18 | 2 1 . 12 . 3 Treads 18 | 2 1 . 12 . 3 Leg . | . . . . . . Wheel . | . . . . . . Hover . | . . . . . . Flight . | . . . . . . Utility 19 | 1 3 . 10 . 5 Device 5 | . . . 3 . 2 Storage 9 | 1 3 . 5 . . Processor 2 | . . . 2 . . Hackware . | . . . . . . Protection 3 | . . . . . 3 Artifact . | . . . . . . Weapon 28 | 3 2 . 15 . 8 Energy Gun 6 | 2 . . 2 . 2 Energy Cannon 12 | . . . 7 . 5 Ballistic Gun 8 | 1 2 . 5 . . Ballistic Cannon 1 | . . . 1 . . Launcher 1 | . . . . . 1 Special Weapon . | . . . . . . Impact Weapon . | . . . . . . Slashing Weapon . | . . . . . . Piercing Weapon . | . . . . . . Special Melee Weapon . | . . . . . . Unidentified Prototypes 5 | . . . 5 . . Parts Lost 20 | . . . 4 . 16 Power 4 | . . . 2 . 2 Propulsion 5 | . . . . . 5 Utility 5 | . . . . . 5 Weapon 6 | . . . 2 . 4 Highest Loss Streak 10 | . . . 1 . 10 Average Slot Usage (%) 98 | . 98 100 98 100 96 Engine 11 | . 14 14 10 11 10 Treads 22 | . 28 28 22 22 21 Device 8 | . . . 7 11 13 Storage 28 | . 26 28 31 33 23 Processor 1 | . . . 3 . . Protection 1 | . . . . . 5 Energy Gun 1 | . 13 . . . 1 Energy Cannon 14 | . . . 15 22 17 Ballistic Gun 5 | . 14 28 6 . . Naked Turns . | . . . . . . Heaviest Build 68 | 12 43 43 68 65 65 Greatest Support 40 | 40 40 40 40 40 40 Greatest Overweight (x) 2 | . 1 1 1 1 2 Average Overweight (x) . | . . 1 . 1 . Largest Inventory Capacity 22 | 6 16 16 22 22 22 Average Capacity 18 | 5 12 16 21 22 16 Most Carried 22 | 4 12 16 22 22 22 Average Carried 17 | 2 8 14 21 22 14 Final Capacity 22 | 6 16 16 22 22 10 Final Carried 22 | 4 12 16 22 22 2 Class Distribution -------------------- 63% | Hauler-Mutant 36% | Mutant Dominant Class ---------------- Mutant | -10/Materials Mutant | -10/Mines Hauler-Mutant | -9/Materials Hauler-Mutant | -9/Mines Hauler-Mutant | -9/Exiles Resources | -11 -10 -10 -9 -9 -9 ----------- Run | Scr Mat Min Mat Min Exi Matter Collected 1901 | 243 255 182 1171 . 50 Remotely . | . . . . . . Salvage Created 2658 | 52 353 182 2040 . 31 Parts 149 | 1 21 11 116 . . Haulers Intercepted 7 | . 1 . 6 . . Recyclers Shooed 2 | . . 1 1 . . Parts Field Recycled . | . . . . . . Retrieved Matter . | . . . . . . Parts Self-Destructed . | . . . . . . Prevented . | . . . . . . Kills | -11 -10 -10 -9 -9 -9 ------- Run | Scr Mat Min Mat Min Exi Combat Hostiles Destroyed 45 | . 6 4 31 . 4 Melee 1 | . . . 1 . . Guns 22 | . 6 4 12 . . Cannons 19 | . . . 18 . 1 AOE 3 | . . . . . 3 Classes Destroyed 11 | 1 5 . 4 . 1 Worker 2 | . . . 2 . . Builder 1 | . . . 1 . . Hauler 7 | . 1 . 6 . . Recycler 5 | 1 1 . 3 . . Operator 1 | . 1 . . . . Watcher 6 | . 1 . 5 . . Swarmer 7 | . 2 . 5 . . Grunt 24 | . 4 4 16 . . Duelist 1 | . . . 1 . . Sentry 9 | . . . 9 . . Assembled 7 | . . . . . 7 Best Kill Streak 6 | 1 3 2 6 . 4 Combat Bots Only 4 | . 3 2 4 . 4 Max Kills in Single Turn 3 | 1 1 1 2 . 3 Gunslinging . | . . . . . . Exploded 3 | . . . . . 3 Melee 1 | . . . 1 . . Uniques/NPCs Destroyed 1 | . . . . . 1 EX-HEX (-9/Exiles) Combat | -11 -10 -10 -9 -9 -9 -------- Run | Scr Mat Min Mat Min Exi Damage Taken 3684 | . 107 377 1029 . 2171 Core 440 | . 35 . 113 . 292 Absorbed by Shields . | . . . . . . Core Remaining (%) 93 | 100 . 86 . . . Volleys Fired 286 | 4 29 22 102 . 129 Largest 2 | 2 2 2 2 . 2 Hottest 136 | 90 90 46 136 . 126 Shots Fired 451 | 8 57 44 200 . 142 Gun 311 | 8 57 44 103 . 99 Cannon 138 | . . . 97 . 41 Launcher 2 | . . . . . 2 Special . | . . . . . . Kinetic 180 | . 30 44 106 . . Thermal 129 | 8 27 . 94 . . Explosive 2 | . . . . . 2 Electromagnetic 140 | . . . . . 140 Robot Hit Streak 25 | 3 9 8 25 . 25 Robot Miss Streak 3 | 3 2 2 3 . 3 Penetration Max . | . . . . . . Secondary Targets 3 | . . 1 2 . . Max Gunslinging Chain 1 | . . 1 1 . . Shots Hit Robots 338 | 4 35 34 133 . 132 Core Hits 103 | 2 14 9 53 . 25 Critical Hits 13 | . . . 11 . 2 Critical Kills 4 | . . . 4 . . Critical Parts Destroyed 7 | . . . 7 . . Melee Attacks . | . . . . . . Impact . | . . . . . . Slashing . | . . . . . . Piercing . | . . . . . . Sneak Attacks . | . . . . . . Combat Hostiles . | . . . . . . Follow-up Attacks . | . . . . . . Damage Inflicted 4020 | 46 457 525 2452 . 540 Guns 2264 | 46 457 525 1156 . 80 Cannons 1420 | . . . 1290 . 130 Explosions 330 | . . . . . 330 Melee . | . . . . . . Ramming 6 | . . . 6 . . Kinetic 1999 | . 268 525 1206 . . Thermal 1475 | 46 189 . 1240 . . Explosive 330 | . . . . . 330 Electromagnetic 210 | . . . . . 210 Impact . | . . . . . . Slashing . | . . . . . . Piercing . | . . . . . . Highest Corruption . | . . . . . . Average Corruption . | . . . . . . Corruption Purged . | . . . . . . Overload Shots . | . . . . . . Overflow Damage 5 | . . . 5 . . Projectiles 5 | . . . 5 . . Explosions . | . . . . . . Melee . | . . . . . . Knockbacks 1 | . . . 1 . . Impact . | . . . . . . Kinetic 1 | . . . 1 . . Secondary . | . . . . . . Self-Inflicted Damage . | . . . . . . Shots . | . . . . . . Rammed 1 | . . . 1 . . Targets Rammed 2 | . . . 2 . . Kicked . | . . . . . . Crushed 1 | . . . 1 . . Highest Temperature 216 | 120 210 81 216 . 199 Average Temperature 83 | 61 55 32 43 . 137 Received Heat Transfer 576 | . 48 213 315 . . Siege Activations . | . . . . . . Robots Corrupted . | . . . . . . Combat Hostiles . | . . . . . . Parts Fried . | . . . . . . Impact Corruptions . | . . . . . . Robots Melted . | . . . . . . Combat Hostiles . | . . . . . . Parts Melted 2 | . . . 2 . . Heat Transferred 2815 | 112 520 . 2183 . . Parts Sabotaged . | . . . . . . Parts Stolen . | . . . . . . Parts Stripped . | . . . . . . Power Chain Reactions . | . . . . . . Missiles Intercepted . | . . . . . . Alert | -11 -10 -10 -9 -9 -9 ------- Run | Scr Mat Min Mat Min Exi Peak Influence 388 | 5 204 116 388 86 . Average Influence 150 | . 55 75 187 86 . Maximum Alert Level 1 | . 1 . 1 . . Low Security (%) 69 | 100 96 100 58 100 . Level 1 30 | . 3 . 41 . . Level 2 . | . . . . . . Level 3 . | . . . . . . Level 4 . | . . . . . . Level 5 . | . . . . . . High Security . | . . . . . . Max Security . | . . . . . . Squads Dispatched 4 | . 2 . 2 . . Investigation 3 | . 1 . 2 . . Extermination . | . . . . . . Reinforcement 1 | . 1 . . . . Assault . | . . . . . . Garrison . | . . . . . . Intercept . | . . . . . . Construction Impeded . | . . . . . . Haulers Reinforced . | . . . . . . Stealth | -11 -10 -10 -9 -9 -9 --------- Run | Scr Mat Min Mat Min Exi Distress Signals 4 | . 1 . 3 . . Communications Jammed . | . . . . . . Distress Signals . | . . . . . . Times Spotted 61 | . 9 4 43 . 5 Peak Tracking Total 6 | . 3 2 4 . 6 Tactical Retreats 2 | . . . 2 . . Traps | -11 -10 -10 -9 -9 -9 ------- Run | Scr Mat Min Mat Min Exi Traps Triggered 1 | . 1 . . . . Indirectly . | . . . . . . Trap Hack Attempts . | . . . . . . Triggered . | . . . . . . Disarmed . | . . . . . . Reprogrammed 6 | . . . 6 . . Reused . | . . . . . . Traps Extracted . | . . . . . . Installed . | . . . . . . Triggered . | . . . . . . Machines | -11 -10 -10 -9 -9 -9 ---------- Run | Scr Mat Min Mat Min Exi Machines Disabled 5 | . . 1 1 . 3 Max in Single Turn 1 | . . 1 1 . 1 Machines Sabotaged . | . . . . . . Garrisons Compromised . | . . . . . . Overloaded Fab Kills . | . . . . . . Fab Network Shutdowns . | . . . . . . Hacking | -11 -10 -10 -9 -9 -9 --------- Run | Scr Mat Min Mat Min Exi Machines Accessed 18 | . 3 . 14 . 1 Terminals 12 | . 2 . 10 . . Fabricators . | . . . . . . Repair Stations 3 | . 1 . 2 . . Recycling Units 1 | . . . 1 . . Scanalyzers 1 | . . . 1 . . Garrison Access . | . . . . . . Total Hacks 55 | . 10 . 44 . 1 Successful 35 | . 5 . 29 . 1 Failed 19 | . 5 . 14 . . Catastrophic 4 | . 1 . 3 . . Database Lockouts 1 | . . . 1 . . Manual 18 | . 4 . 14 . . Terminals 38 | . 5 . 33 . . Fabricators . | . . . . . . Repair Stations 9 | . 5 . 4 . . Recycling Units 1 | . . . 1 . . Scanalyzers 6 | . . . 6 . . Garrison Access . | . . . . . . Terminal Hacks 15 | . 2 . 12 . 1 Record 1 | . . . . . 1 Robot Analysis 2 | . 1 . 1 . . Prototype ID Bank 2 | . . . 2 . . Branch Access Points 2 | . 1 . 1 . . Alert Level 1 | . . . 1 . . Unreport Threat 2 | . . . 2 . . Locate Traps 1 | . . . 1 . . Reprogram Traps 1 | . . . 1 . . Hauler Manifests 1 | . . . 1 . . Zone Layout 2 | . . . 2 . . Fabricator Hacks . | . . . . . . Repair Station Hacks 5 | . 3 . 2 . . Scan Component 4 | . 2 . 2 . . Repair 1 | . 1 . . . . Recycling Unit Hacks . | . . . . . . Scanalyzer 6 | . . . 6 . . Insert Component 3 | . . . 3 . . Analyze 3 | . . . 3 . . Garrison Access Hacks . | . . . . . . Unauthorized Hacks 9 | . . . 9 . . Terminals 8 | . . . 8 . . Track 3 | . . . 3 . . Assimilate 1 | . . . 1 . . Botnet 2 | . . . 2 . . Disrupt 2 | . . . 2 . . Fabricators . | . . . . . . Repair Stations . | . . . . . . Recycling Units 1 | . . . 1 . . Tunnel 1 | . . . 1 . . Scanalyzers . | . . . . . . Garrison Access . | . . . . . . Data Cores Recovered . | . . . . . . Used . | . . . . . . Hacking Detections 15 | . 3 . 12 . . Full Trace Events 1 | . 1 . . . . Feedback Events . | . . . . . . Feedback Blocked . | . . . . . . Robot Schematics Acquired . | . . . . . . Robots Built . | . . . . . . Matter . | . . . . . . Time . | . . . . . . Total Robot Build Rating . | . . . . . . Part Schematics Acquired 3 | . . . 3 . . Parts Built . | . . . . . . Matter . | . . . . . . Time . | . . . . . . Total Part Build Rating . | . . . . . . Parts Repaired 1 | . 1 . . . . Time 26 | . 26 . . . . Parts Recycled . | . . . . . . Recycled Matter . | . . . . . . Retrieved Matter . | . . . . . . Retrieved Components . | . . . . . . Parts Scanalyzed 3 | . . . 3 . . Part Schematics Acquired 3 | . . . 3 . . Parts Damaged . | . . . . . . Bothacking | -11 -10 -10 -9 -9 -9 ------------ Run | Scr Mat Min Mat Min Exi Used RIF Installer . | . . . . . . Robots Hacked . | . . . . . . Non-combat . | . . . . . . Combat . | . . . . . . Robot Hacks Applied . | . . . . . . Relay Couplers Released . | . . . . . . Robots Rewired . | . . . . . . Allies Hacked . | . . . . . . Hacks Repelled . | . . . . . . Allies | -11 -10 -10 -9 -9 -9 -------- Run | Scr Mat Min Mat Min Exi Total Allies 4 | . . . 1 3 . Largest Group 3 | . . . 1 3 3 Highest-Rated Group 40 | . . . 10 40 40 Highest-Rated Ally 16 | . . . 10 16 16 Total Orders 9 | . . . . 8 1 STAY 5 | . . . . 4 1 FOLLOW 4 | . . . . 4 . Ally Attacks 11 | . . . . . 11 Total Damage 121 | . . . . . 121 Kills 1 | . . . . . 1 Allies Corrupted . | . . . . . . Allies Melted . | . . . . . . Intel | -11 -10 -10 -9 -9 -9 ------- Run | Scr Mat Min Mat Min Exi Robot Analysis Total 2 | . 1 . 1 . . Derelict Logs Recovered 1 | . . 1 . . . Drone Launches . | . . . . . . Drone Recoveries . | . . . . . . Exploration | -11 -10 -10 -9 -9 -9 ------------- Run | Scr Mat Min Mat Min Exi Turns Passed 4752 | 115 490 170 2329 168 1480 Spaces Moved 2113 | 61 215 61 1023 90 663 Core 7 | 7 . . . . . Treads 2106 | 54 215 61 1023 90 663 Legs . | . . . . . . Wheels . | . . . . . . Hover . | . . . . . . Flight . | . . . . . . Fastest Speed 50 | 50 160 180 160 180 160 Average Speed 175 | 147 162 180 179 180 174 Slowest Speed 200 | 160 180 180 180 180 200 Overloaded Moves . | . . . . . . Propulsion Burnouts . | . . . . . . Robots Hopped . | . . . . . . Cave-ins Triggered . | . . . . . . Exploration Rate (%) 37 | 4 30 11 92 22 65 Regions Visited 5 Branch Regions 3 Pre-discovered Areas 2 | . . . 1 . 1 Known Exits Taken 2 | . 1 . 1 . . Unknown Exits Taken 3 | 1 . 1 . 1 . Scrap Searched . | . . . . . . Spaces Dug . | . . . . . . Terrain Destroyed 9 | . . . . . 9 Melee . | . . . . . . Projectile . | . . . . . . AOE 9 | . . . . . 9 Actions | -11 -10 -10 -9 -9 -9 --------- Run | Scr Mat Min Mat Min Exi Total 2761 | 75 306 86 1348 96 850 Wait 166 | . 42 . 103 7 14 Move 2108 | 60 214 60 1022 89 663 Hop . | . . . . . . Pick Up 52 | 2 10 4 29 . 7 Fast Attach 27 | 7 3 . 16 . 1 Attach 21 | . 1 . 6 . 14 Detach 3 | 1 . . 1 . 1 Swap 27 | 1 2 . 20 . 4 Drop 69 | . 5 . 47 . 17 Fire 286 | 4 29 22 102 . 129 Melee . | . . . . . . Ram . | . . . . . . Kick . | . . . . . . Crush 2 | . . . 2 . . Escape Stasis . | . . . . . . Rewire . | . . . . . . Trap . | . . . . . . Miscellaneous . | . . . . . . Route ------- -11/Scrapyard -10/Materials (discovered 2 exits: *Min x2) -10/Mines -9/Materials (discovered 4 exits: [*Mat x3] / *Min) -9/Mines -9/Exiles (discovered 1 exit: [*Min]) History --------- Turn | Location | Event 42 | -11/Scrapyard | Discovered new exit (range 15) 116 | -11/Scrapyard | Entered Materials 215 | -10/Materials | Identified exit to Mines 309 | -10/Materials | Build established: Mutant 591 | -10/Materials | Repaired Lgt. Treads 606 | -10/Materials | Entered Mines 685 | -10/Mines | Discovered new exit (range 5) 776 | -10/Mines | Entered Materials 776 | -9/Materials | Evolved 2 slots: Utility x2 1110 | -9/Materials | Identified exit to Mines 1110 | -9/Materials | Central database locked down 1337 | -9/Materials | Build established: Hauler-Mutant 1705 | -9/Materials | Discovered new exit (range 16) 2058 | -9/Materials | Discovered new exit (range 13) 2588 | -9/Materials | Discovered new exit (range 5) 3105 | -9/Materials | Entered Mines 3113 | -9/Mines | Assisted by bots powering up and referring to "LRC-V3" 3162 | -9/Mines | Assembled infested the area 3217 | -9/Mines | Met 8R-AWN 3265 | -9/Mines | Discovered new exit (range 5) 3273 | -9/Mines | Entered Exiles 3273 | -9/Exiles | Accompanied by 3 allies 3297 | -9/Exiles | Discovered new exit (range 15) 3318 | -9/Exiles | Welcomed by 8R-AWN 3349 | -9/Exiles | Met EX-HEX 3409 | -9/Exiles | Met EX-BIN 3430 | -9/Exiles | Met EX-DEC 3446 | -9/Exiles | Learned location of Zion (-7) 3519 | -9/Exiles | Visited The Gauntlet 3848 | -9/Exiles | Learned about 8R-AWN's background 4330 | -9/Exiles | Build established: Mutant 4456 | -9/Exiles | Attacked by the Exiles 4466 | -9/Exiles | Allies destroyed EX-HEX 4508 | -9/Exiles | Core integrity fell below 50% 4638 | -9/Exiles | Core integrity fell below 20% 4693 | -9/Exiles | Lost 10 parts (1p3n3u3w) 4744 | -9/Exiles | Lost 4 parts (1p1n1u1w) 4753 | -9/Exiles | Destroyed by 8R-AWN with 8R-AWN's Boregun Last Messages --------------- 04713_ Cld. Ion Engine destroyed. 04718_ HV Slug penetrates Wall. 04718_ HV Slug penetrates Assembled Analyzer. 04723_ Penetrated by HV Slug. 04727_ HV Slug penetrates Wall. 04727_ HV Slug penetrates Machine. 04732_ Penetrated by HV Slug. 04732_ HV Slug penetrates Wall. 04736_ Penetrated by HV Slug. 04740_ HV Slug penetrates Wall. 04740_ Penetrated by HV Slug. 04740_ HV Slug penetrates Machine. 04744_ Penetrated by HV Slug. 04749_ Heat Sink destroyed. 04749_ Penetrated by HV Slug. 04751_ 8R-AWN suffers critical hit. 04753_ Penetrated by HV Slug. 04753_ Critical hit. 04753_ Lgt. Treads destroyed. 04753_ Penetrated by HV Slug. Map ----- +----------------------------------------------------+ | ???? ?? ?????????????????????????????????????????? | | ? ???????????????????????????????????????? | | ?????????????????????????????????????? | | ?????????????????????????????????????? | | "????????????????????????????????????? | | "????????????????????????????????????? | | ??????????????????????????????????????? | | ??????????????????????????????????????? | | " "X???????????????????????????????????????? | | " "????????????????????????????????????????? | | " "??????????????????????????????????????????? | | " #???????????????????????????????????????????? | | " #???????????????????????????????????????????? | | #???????????????????????????????????????????? | | ##??????? ??????????????????????????????????? | | ##???####;######???????????????????????????? | | #####" """"##??????????????????????????? | | " ""##?????????????????????????? | | #?????????????????????????? | | "#?????????????????????????? | | a #???????????#####?????????? | | ##?????????##" #?????????? | | ;##???????#" #?????????? | | """ #??????##" ##????????? | | ##""" ##???### ###??????? | | ?#####""" @;##??# ######## | | ?????##""" |*!;#### #""""## | | ??????#"""" !%! [ g;## | | ?????##"" ! ## | | ??####"""" #### | | ###""" ""#?#"""""#### | | """" #"""##?#######??#### | | % ######??????????????# | | ##???????????????????? | | " ##????????????????????? | | "" """ "##????????????????????? | | # ##""" " " ""#"% %% "###????????????????????? | | # ######""" """##" ##??????????????????????? | | # #????###""""### #???????????????????????? | | # ####???######?########????????????????????????? | | ! "!#??????????????????????????????????????????? | | " !#??????????????????????????????????????????? | | " "#??????????????????????????????????????????? | | !!""!"#??????????????????????????????????????????? | | #######??????????????????????????????????????????? | | ?????????????????????????????????????????????????? | | ?????????????????????????????????????????????????? | | ?????????????????????????????????????????????????? | | ?????????????????????????????????????????????????? | | ?????????????????????????????????????????????????? | +----------------------------------------------------+ Best States ------------- Heat Dissipation 50 Coolant Potential 50 Energy Generation 23 Energy Capacity 280 Matter Stores 300 Matter Capacity 300 Sight Range 16 Terrain Scan Density 10 Armor Coverage 300 Evasion (%) 40 Targeting Accuracy 12 Recoil Reduction 2 Item Schematics ----------------- Plasma Cutter | -9/Materials | Scanalyzed Adv. Beam Cannon | -9/Materials | Scanalyzed Lrg. Storage Unit | -9/Materials | Scanalyzed Robot Schematics ------------------ None Fabricated ------------ Nothing Alien Tech Used ----------------- None Achievements -------------- None Challenges ------------ None Game ------ Seed DamperQuantumBoregun Manual? 0 Play Time 00:31:26 Cumulative 151.1 hours Start 2020.06.25 @ 15:48:15 End 2020.06.25 @ 16:17:55 Sessions 1 Manual Loads 0 Difficulty Rogue Special Mode None Game No. 72 Rogue 72 Adventurer 0 Explorer 0 Win Type - Total 7 Types 6/0/0/1/0/0/0 Lore% 72 Gallery% 69 Achievement% 59 Wizard Run 0 Options --------- ASCII 1 Keyboard 0 Movement Numpad Keybinds 0 Fullscreen 1 Font 18/Cog Map View 76x50 Tactical HUD 1 Map Filters NONE Filters NONE Steam 1 RUN: a7422aef-019b-4ac5-8778-f6b581ccb112